{"text_format":"1","workbook":"xlsx","n_sheets":2,"sheets":["Calculateur","CI list"],"not_rendered":{"charts":0,"images":2,"macros":1,"external_links":0,"defined_names":0,"comments":0,"pivot_tables":0},"unopened":[],"bounds":{"document_bytes":16777216,"sheet_cells":100000,"rows_first":2000,"rows_last":500,"rows_between":2000,"halvings":0,"cell_chars":16384,"cell_head_chars":4096},"cells_cut":0,"cells_raw":0,"read":"whole","date_system":"1900"}

{"sheet":"Calculateur","index":0,"n_rows":24,"n_cols":14,"rows_kept":24,"cut":false,"hidden":false,"merged":[[15,10,15,13]]}
[null,"Surveillance de la durabilité"]
[null,"Exemple de calcul de la taille pour l’évaluation de la durabilité physique"]
[]
[null,null,null,null,null,null,null,null,null,"Remarques :"]
[null,"Nombre de grappes par site",15,null,null,"Taux de pertes après 4 ans, toutes causes confondues, tel qu’il est anticipé",0.35,null,null,"Les cases vertes sont à mettre à jour en fonction du contexte national."]
[null,"Nombre de ménages par grappe",10,null,null,"Taux de pertes dues à l’usure normale après 3 ans, tel qu’il est anticipé",0.2,null,null,"Les paramètres encadrés en vert sont généralement exacts et ne nécessitent pas d’ajustement."]
[null,null,null,null,null,"Par déduction, proportion cédée à d’autres utilisateurs",null,{"$f":"G5-G6","v":0.14999999999999997},null,"Les paramètres et résultats encadrés en rouge ne peuvent pas être modifiés."]
[null,null,"Début de l’étude","3e année"]
[null,"Nombre total de ménages par site",{"$f":"C5*C6","v":150},{"$f":"(C5*C6)-((C5*C6)*G15)","v":142.5},null,"Nombre moyen de moustiquaires données lors de la campagne pour chaque ménage",2.5]
[null,"Nombre de moustiquaires par ménage",{"$f":"$G$9-($G$9*$G$10)","v":2.2999999999999998},{"$f":"$G$9-($G$9*$G$10)","v":2.2999999999999998},null,"Proportion de moustiquaires issues de la campagne et perdues au début de l’étude",0.08]
[null,"Nombre de moustiquaires de la cohorte par ménage",{"$f":"C9*C10","v":345},{"$f":"(D9*D10)-((D9*D10)*(G5-G6))","v":278.58750000000003}]
[null,null,null,null,null,"Intervalle de confiance (sélectionner dans la liste déroulante)",0.95,{"$f":"VLOOKUP(G12,'CI list'!B3:C5, 2, FALSE)","v":1.96}]
[null,null,null,null,null,"% anticipé de moustiquaires réparables après 3 ans",0.5]
[null,null,null,null,null,"Effet sur la conception de l’étude",2.5]
[null,null,null,null,null,"Taux de non-réponses",0.05]
[null,null,null,null,null,null,null,null,null,null,"Taux de survie de référence pour chaque durée de vie médiane des moustiquaires et IC"]
[null,null,null,null,null,"Taille de l’échantillon (moustiquaires de la cohorte évaluées la 3e année)",null,{"$f":"D11","v":278.58750000000003},null,null,"1,5 an",0.04,{"$f":"IF($L17-(SQRT((($H$12*$H$12)*($L17*(1-$L17))*$G$14)/$H$17))>=0, $L17-(SQRT((($H$12*$H$12)*($L17*(1-$L17))*$G$14)/$H$17)), 0)","v":3.6159638224150178E-3},{"$f":"$L17+(SQRT((($H$12*$H$12)*($L17*(1-$L17))*$G$14)/$H$17))","v":7.6384036177584991E-2}]
[null,null,null,null,null,"Marge d’erreur estimée (+-, en %)",null,{"$f":"SQRT((($H$12*$H$12)*($G$13*(1-$G$13))*$G$14)/$H$17)","v":9.2835753560465098E-2},null,null,"2 ans",0.19,{"$f":"$L18-(SQRT((($H$12*$H$12)*($L18*(1-$L18))*$G$14)/$H$17))","v":0.11716089973884755},{"$f":"$L18+(SQRT((($H$12*$H$12)*($L18*(1-$L18))*$G$14)/$H$17))","v":0.26283910026115243}]
[null,null,null,null,null,"Intervalle de confiance estimé pour la survie fonctionnelle des MILD",null,{"$f":"G13-H18","v":0.40716424643953492},{"$f":"G13+H18","v":0.59283575356046514},null,"2,5 ans",0.36,0.2708776765819535,0.44912232341804648]
[null,null,null,null,null,null,null,null,null,null,"3 ans",0.5,0.40716424643953492,0.59283575356046514]
[null,null,null,null,null,"Calcul de la taille d’échantillon nécessaire en cas de marge d’erreur de +/- 10 %",null,{"$f":"(($H$12*$H$12)*($G$13*(1-$G$13)))/(0.1*0.1)*$G$14*(1+$G$15)","v":252.10499999999993},null,null,"3,5 ans",0.6,0.50903990955603751,0.69096009044396245]
[null,null,null,null,null,"Calcul de la taille d’échantillon nécessaire en cas de marge d’erreur de +/- 5 %",null,{"$f":"(($H$12*$H$12)*($G$13*(1-$G$13)))/(0.05*0.05)*$G$14*(1+$G$15)","v":1008.4199999999997},null,null,"4 ans",0.68,0.59338866989875438,0.76661133010124571]
[null,null,null,null,null,null,null,null,null,null,"4,5 ans",0.74,0.65855811884367055,0.82144188115632943]
[null,null,null,null,null,null,null,null,null,null,"5 ans",0.78,0.70308626450168155,0.85691373549831851]

{"sheet":"CI list","index":1,"n_rows":5,"n_cols":3,"rows_kept":5,"cut":false,"hidden":true,"merged":[]}
[]
[null,"CI","z"]
[null,0.99,2.57]
[null,0.95,1.96]
[null,0.9,1.65]